fUST/lending_fUST_20250611
["ID","MTS","AMOUNT","RATE_DAILY","PERIOD"]
[365382490,1749636640545,-7019.60509454,0.00022399,2]
[365382492,1749636640556,-844.64040732,0.00022399,2]
[365382494,1749636640567,-424.19973472,0.00022399,2]
[365382496,1749636640577,-160.0,0.00022399,2]
[365382498,1749636640586,-3402.58610872,0.000224,2]
[365382501,1749636640599,-1767.3077136,0.000224,2]
[365382503,1749636640611,-2045.46798974,0.000224,2]
[365382505,1749636640623,-3824.91595004,0.000224,2]
[365382781,1749636643123,-460.0,0.0002136,4]
[365382785,1749636643134,-2612.89143906,0.000224,2]
[365382789,1749636643145,-691.15,0.000224,2]
[365382792,1749636643157,-423.89412164,0.000224,2]
[365382795,1749636643168,-872.23335984,0.000224,2]
[365382946,1749636645876,-460.0,0.0002136,4]
[365382947,1749636645886,-460.0,0.00021634,4]
[365382948,1749636645896,-3809.65945336,0.000224,2]
[365382949,1749636645934,-10242.18598258,0.000224,2]
[365382951,1749636645944,-2055.05610826,0.00022417,7]
[365382952,1749636645956,-439.29727712,0.00022423,2]
[365382954,1749636645967,-460.0,0.00022455,4]
[365382955,1749636645976,-1681.52,0.00022455,4]
[365382957,1749636645986,-1960.68,0.00022455,4]
[365382960,1749636645995,-1598.27,0.00022455,4]
[365382961,1749636646006,-1327.35,0.00022455,4]
[365382963,1749636646016,-259.69965103,0.00022455,4]
[365382965,1749636646028,-200.30034897,0.00022455,4]
[365382967,1749636646037,-124.35532616,0.00022455,4]
[365382975,1749637094437,2576.4342,0.00021,61]
[365382978,1749637363154,162.276579,0.00013699,2]
[365382979,1749637589076,800.0,0.000244,120]
[365382980,1749637607771,800.0,0.000246,120]
[365382986,1749637651253,966.0,0.000246,120]
[365382997,1749637708817,280.80377144,0.0001,2]
[365383122,1749637832163,-1086.5020259,0.0002,2]
[365383123,1749637832174,-242.34272002,0.0002,7]
[365383124,1749637832183,-300.0,0.00020159,2]
[365383125,1749637832192,-300.0,0.00020159,2]
[365383126,1749637832201,-309.14,0.0002016,2]
[365383127,1749637832211,-10168.52622218,0.0002016,5]
[365383128,1749637832220,-2526.9632542,0.00021,2]
[365383129,1749637832229,-618.27,0.00021121,2]
[365383130,1749637832238,-729.9976899,0.000212,2]
[365383131,1749637832247,-365.0707398,0.000212,2]
[365383132,1749637832256,-460.0,0.00021356,4]
[365383133,1749637832265,-460.0,0.00021356,4]
[365383134,1749637832274,-460.0,0.00021356,4]
[365383135,1749637832283,-2431.49,0.00021356,2]
[365383136,1749637832295,-460.0,0.00021356,4]
[365383137,1749637832306,-1581.8,0.00021356,4]
[365383138,1749637832315,-1587.03,0.00021356,4]
[365383139,1749637832324,-1324.62,0.00021356,4]
[365383140,1749637832334,-360.0,0.00021356,4]
[365383141,1749637832343,-460.0,0.00021356,4]
[365383142,1749637832353,-2070.41,0.00021356,4]
[365383143,1749637832362,-460.0,0.00021356,4]
[365383144,1749637832376,-460.0,0.00021356,4]
[365383145,1749637832385,-1544.2,0.00021356,4]
[365383146,1749637832395,-1666.14,0.00021356,4]
[365383147,1749637832405,-460.0,0.00021356,4]
[365383148,1749637832414,-964.86,0.00021356,4]
[365383149,1749637832423,-651.62,0.00021356,4]
[365383150,1749637832432,-460.0,0.00021356,4]
[365383151,1749637832442,-340.0,0.00021356,4]
[365383152,1749637832451,-460.0,0.00021357,4]
[365383153,1749637832461,-460.0,0.00021357,4]
[365383154,1749637832470,-460.0,0.00021357,4]
[365383155,1749637832479,-460.0,0.00021357,4]
[365383156,1749637832489,-460.0,0.00021357,4]
[365383157,1749637832498,-460.0,0.00021357,4]
[365383158,1749637832507,-460.0,0.00021357,4]
[365383159,1749637832516,-2623.28,0.00021357,4]
[365383160,1749637832525,-460.0,0.00021357,4]
[365383161,1749637832534,-720.61,0.00021357,4]
[365383162,1749637832543,-536.97,0.00021357,4]
[365383163,1749637832552,-2431.49,0.00021357,2]
[365383164,1749637832562,-460.0,0.00021357,4]
[365383165,1749637832571,-460.0,0.00021357,4]
[365383166,1749637832580,-460.0,0.00021357,4]
[365383167,1749637832590,-460.0,0.00021357,4]
[365383168,1749637832599,-460.0,0.00021357,4]
[365383169,1749637832608,-460.0,0.00021357,4]
[365383170,1749637832618,-460.0,0.00021357,4]
[365383171,1749637832627,-1029.57,0.00021357,4]
[365383172,1749637832636,-460.0,0.00021357,4]
[365383173,1749637832645,-460.0,0.00021357,4]
[365383174,1749637832654,-245.98323056,0.00021357,4]
[365383175,1749637832663,-1104.08,0.00021357,4]
[365383176,1749637832672,-494.58,0.00021357,4]
[365383177,1749637832681,-460.0,0.00021357,4]
[365383178,1749637832691,-2577.02,0.00021357,4]
[365383179,1749637832700,-1036.88,0.00021357,4]
[365383180,1749637832709,-609.36632111,0.00021357,4]
[365383181,1749637832718,-922.68,0.00021357,4]
[365383182,1749637832727,-460.0,0.00021357,4]
[365383183,1749637832736,-460.0,0.00021357,4]
[365383184,1749637832746,-222.47307361,0.00021357,4]
[365383185,1749637832755,-460.0,0.00021358,4]
[365383186,1749637832772,-460.0,0.00021358,4]
[365383187,1749637832784,-460.0,0.00021358,4]
[365383188,1749637832793,-460.0,0.00021358,4]
[365383189,1749637832803,-460.0,0.00021358,4]
[365383190,1749637832812,-460.0,0.00021358,4]
[365383191,1749637832821,-460.0,0.00021358,4]
[365383192,1749637832831,-277.90834845,0.00021358,4]
[365383193,1749637832840,-460.0,0.00021358,4]
[365383194,1749637832849,-205.00562769,0.00021358,4]
[365383195,1749637832858,-320.41920565,0.00021358,4]
[365383196,1749637832867,-308.29167125,0.00021358,4]
[365383197,1749637832877,-337.41269637,0.00021358,4]
[365383198,1749637832887,-204.43935566,0.00021358,4]
[365383199,1749637832896,-460.0,0.00021358,4]
[365383200,1749637832905,-460.0,0.00021358,4]
[365383201,1749637832915,-460.0,0.00021358,4]
[365383202,1749637832924,-330.0,0.00021358,4]
[365383203,1749637832934,-460.0,0.00021358,4]
[365383204,1749637832943,-460.0,0.00021358,4]
[365383205,1749637832952,-401.25,0.00021358,4]
[365383206,1749637832963,-460.0,0.00021358,2]
[365383207,1749637833123,-460.0,0.00021358,4]
[365383208,1749637833134,-460.0,0.00021358,4]
[365383209,1749637833145,-442.62766672,0.00021572,2]
[365383210,1749637833154,-2431.49,0.00021577,2]
[365383211,1749637833163,-460.0,0.0002163,4]
[365383212,1749637833173,-460.0,0.0002163,4]
[365383213,1749637833181,-460.0,0.0002163,4]
[365383214,1749637833191,-460.0,0.0002163,4]
[365383215,1749637833201,-1581.8,0.0002163,4]
[365383216,1749637833210,-1587.03,0.0002163,4]
[365383217,1749637833219,-1324.62,0.0002163,4]
[365383218,1749637833229,-460.0,0.0002163,4]
[365383219,1749637833238,-2070.41,0.0002163,4]
[365383220,1749637833248,-460.0,0.0002163,4]
[365383221,1749637833258,-155.86137314,0.0002163,4]
[365383222,1749637833267,-1544.2,0.0002163,4]
[365383223,1749637833277,-1666.14,0.0002163,4]
[365383224,1749637833286,-460.0,0.0002163,4]
[365383225,1749637833297,-964.86,0.0002163,4]
[365383226,1749637833307,-651.62,0.0002163,4]
[365383227,1749637833316,-460.0,0.0002163,4]
[365383228,1749637833325,-460.0,0.00021631,4]
[365383229,1749637833334,-460.0,0.00021631,4]
[365383230,1749637833344,-174.86,0.00021631,4]
[365383231,1749637833354,-460.0,0.00021631,4]
[365383232,1749637833363,-460.0,0.00021631,4]
[365383233,1749637833373,-460.0,0.00021631,4]
[365383234,1749637833382,-207.14944358,0.00021631,4]
[365383235,1749637833392,-2623.28,0.00021631,4]
[365383236,1749637833401,-460.0,0.00021631,4]
[365383237,1749637833411,-720.61,0.00021631,4]
[365383238,1749637833420,-536.97,0.00021631,4]
[365383239,1749637833430,-2431.49,0.00021631,2]
[365383240,1749637833439,-460.0,0.00021631,4]
[365383241,1749637833448,-460.0,0.00021631,4]
[365383242,1749637833457,-460.0,0.00021631,4]
[365383243,1749637833466,-460.0,0.00021631,4]
[365383244,1749637833475,-460.0,0.00021631,4]
[365383245,1749637833484,-460.0,0.00021631,4]
[365383246,1749637833494,-460.0,0.00021631,4]
[365383247,1749637833503,-1029.57,0.00021631,4]
[365383248,1749637833513,-460.0,0.00021631,4]
[365383249,1749637833523,-460.0,0.00021631,4]
[365383250,1749637833533,-1104.08,0.00021631,4]
[365383251,1749637833542,-494.58,0.00021631,4]
[365383252,1749637833552,-2577.02,0.00021631,4]
[365383253,1749637833561,-1036.88,0.00021631,4]
[365383254,1749637833571,-922.68,0.00021631,4]
[365383255,1749637833580,-460.0,0.00021631,4]
[365383256,1749637833589,-460.0,0.00021632,4]
[365383257,1749637833599,-460.0,0.00021632,4]
[365383258,1749637833609,-460.0,0.00021632,4]
[365383259,1749637833618,-460.0,0.00021632,4]
[365383260,1749637833628,-320.14910191,0.00021632,4]
[365383261,1749637833638,-360.0,0.00021632,4]
[365383262,1749637833648,-460.0,0.00021632,4]
[365383263,1749637833658,-460.0,0.00021632,4]
[365383264,1749637833667,-460.0,0.00021632,4]
[365383265,1749637833676,-460.0,0.00021632,4]
[365383266,1749637833686,-460.0,0.00021632,4]
[365383267,1749637833695,-460.0,0.00021632,2]
[365383268,1749637833705,-460.0,0.00021632,4]
[365383269,1749637833714,-442.62766672,0.00021666,2]
[365383270,1749637833724,-357.2019528,0.00021671,2]
[365383271,1749637833734,-317.4403672,0.00021671,2]
[365383272,1749637833743,-573.244939,0.00021678,2]
[365383273,1749637833754,-2431.49,0.00021698,2]
[365383274,1749637833763,-153.0,0.00021699,2]
[365383275,1749637833773,-153.0,0.00021699,2]
[365383276,1749637833782,-153.0,0.00021699,2]
[365383277,1749637833795,-153.0,0.00021699,2]
[365383278,1749637833805,-153.0,0.00021699,2]
[365383279,1749637833814,-153.0,0.00021699,2]
[365383280,1749637833823,-153.0,0.00021699,2]
[365383281,1749637833833,-153.0,0.00021699,2]
[365383282,1749637833842,-153.0,0.00021699,2]
[365383283,1749637833852,-153.0,0.00021699,2]
[365383284,1749637833862,-153.0,0.00021699,2]
[365383285,1749637833872,-153.0,0.00021699,2]
[365383286,1749637833881,-153.0,0.000217,2]
[365383287,1749637833891,-153.0,0.000217,2]
[365383288,1749637833901,-258.55531047,0.00021767,2]
[365383289,1749637833910,-500.0,0.00021767,2]
[365383290,1749637833920,-500.0,0.00021767,2]
[365383291,1749637833929,-258.5557326,0.00021767,2]
[365383292,1749637833939,-500.0,0.00021767,2]
[365383293,1749637833948,-207.4,0.00021894,2]
[365383294,1749637833958,-1989.88223947,0.000219,6]
[365383295,1749637833967,-460.0,0.00021904,4]
[365383296,1749637833977,-1581.8,0.00021904,4]
[365383297,1749637833986,-1587.03,0.00021904,4]
[365383298,1749637833995,-1324.62,0.00021904,4]
[365383299,1749637834005,-460.0,0.00021904,4]
[365383300,1749637834015,-2070.41,0.00021904,4]
[365383301,1749637834025,-1544.2,0.00021904,4]
[365383302,1749637834034,-1666.14,0.00021904,4]
[365383303,1749637834044,-210.0,0.00021904,4]
[365383304,1749637834054,-964.86,0.00021904,4]
[365383305,1749637834063,-651.62,0.00021904,4]
[365383306,1749637834073,-460.0,0.00021905,4]
[365383307,1749637834082,-460.0,0.00021905,4]
[365383308,1749637834092,-460.0,0.00021905,4]
[365383309,1749637834102,-2623.28,0.00021905,4]
[365383310,1749637834112,-720.61,0.00021905,4]
[365383311,1749637834122,-536.97,0.00021905,4]
[365383312,1749637834132,-2431.49,0.00021905,2]
[365383313,1749637834143,-460.0,0.00021905,4]
[365383314,1749637834152,-460.0,0.00021905,4]
[365383315,1749637834161,-460.0,0.00021905,4]
[365383316,1749637834170,-1029.57,0.00021905,4]
[365383317,1749637834179,-460.0,0.00021905,4]
[365383318,1749637834189,-460.0,0.00021905,4]
[365383319,1749637834198,-494.58,0.00021905,4]
[365383320,1749637834208,-1104.08,0.00021905,4]
[365383321,1749637834217,-2577.02,0.00021905,4]
[365383322,1749637834226,-1036.88,0.00021905,4]
[365383323,1749637834235,-922.68,0.00021905,4]
[365383324,1749637834244,-460.0,0.00021905,4]
[365383325,1749637834254,-460.0,0.00021906,4]
[365383326,1749637834263,-282.299,0.00021906,4]
[365383327,1749637834272,-414.64,0.00021906,4]
[365383328,1749637834281,-460.0,0.00021906,4]
[365383329,1749637834291,-400.0,0.00021906,4]
[365383330,1749637834306,-460.0,0.00021906,2]
[365383331,1749637834315,-161.05299737,0.00021918,2]
[365383332,1749637834325,-420.0,0.00021947,2]
[365383333,1749637834334,-420.0,0.00021947,2]
[365383334,1749637834344,-13310.07562572,0.0002199,2]
[365383335,1749637834354,-442.62766673,0.00021994,2]
[365383336,1749637834363,-171.0,0.00022,2]
[365383337,1749637834372,-10761.91278064,0.00022,2]
[365383338,1749637834383,-14494.97517242,0.00022,2]
[365383339,1749637834393,-151.0,0.00022,2]
[365383340,1749637834402,-1989.88223931,0.00022003,6]
[365383341,1749637834411,-178.52723075,0.00022069,2]
[365383342,1749637834421,-5000.0,0.00022069,2]
[365383343,1749637834430,-1250.0,0.00022069,2]
[365383344,1749637834440,-1250.0,0.00022069,2]
[365383345,1749637834449,-1250.0,0.00022069,2]
[365383346,1749637834459,-1250.0,0.00022069,2]
[365383347,1749637834468,-1250.0,0.00022069,2]
[365383348,1749637834479,-1250.0,0.00022069,2]
[365383349,1749637834490,-1250.0,0.00022069,2]
[365383350,1749637834500,-1250.0,0.00022069,2]
[365383351,1749637834509,-1250.0,0.00022069,2]
[365383352,1749637834518,-1250.0,0.00022069,2]
[365383353,1749637834528,-1250.0,0.00022069,2]
[365383354,1749637834538,-1250.0,0.00022069,2]
[365383355,1749637834547,-1250.0,0.00022069,2]
[365383356,1749637834557,-1250.0,0.00022069,2]
[365383357,1749637834566,-1299.96414208,0.00022069,2]
[365383358,1749637834574,-927.41,0.00022081,2]
[365383359,1749637834583,-2431.49,0.00022081,2]
[365383360,1749637834590,-365.0707398,0.00022082,2]
[365383361,1749637834598,-365.0707398,0.00022082,2]
[365383362,1749637834607,-365.0707398,0.00022082,2]
[365383363,1749637834617,-365.0707398,0.00022082,2]
[365383364,1749637834627,-365.0707398,0.00022082,2]
[365383365,1749637834637,-365.0707398,0.00022082,2]
[365383366,1749637834648,-728.991162,0.00022082,2]
[365383367,1749637834658,-1989.88223931,0.00022107,6]
[365383368,1749637834667,-203.73728105,0.00022169,30]
[365383369,1749637834677,-460.0,0.00022178,4]
[365383370,1749637834687,-2431.49,0.00022178,2]
[365383371,1749637834697,-1581.8,0.00022178,4]
[365383372,1749637834706,-1587.03,0.00022178,4]
[365383373,1749637834716,-1324.62,0.00022178,4]
[365383374,1749637834726,-261.24,0.00022178,4]
[365383375,1749637834735,-2070.41,0.00022178,4]
[365383376,1749637834745,-1544.2,0.00022178,4]
[365383377,1749637834754,-1666.14,0.00022178,4]
[365383378,1749637834764,-964.86,0.00022178,4]
[365383379,1749637834774,-651.62,0.00022178,4]
[365383380,1749637834783,-244.17,0.00022179,4]
[365383381,1749637834792,-460.0,0.00022179,4]
[365383382,1749637834802,-460.0,0.00022179,4]
[365383383,1749637834813,-2623.28,0.00022179,4]
[365383384,1749637834822,-720.61,0.00022179,4]
[365383385,1749637834831,-536.97,0.00022179,4]
[365383386,1749637834840,-460.0,0.00022179,4]
[365383387,1749637834849,-460.0,0.00022179,4]
[365383388,1749637834858,-1029.57,0.00022179,4]
[365383389,1749637834867,-460.0,0.00022179,4]
[365383390,1749637834877,-460.0,0.00022179,4]
[365383391,1749637834886,-494.58,0.00022179,4]
[365383392,1749637834897,-1104.08,0.00022179,4]
[365383393,1749637834906,-2577.02,0.00022179,4]
[365383394,1749637834915,-1036.88,0.00022179,4]
[365383395,1749637834924,-922.68,0.00022179,4]
[365383396,1749637834934,-460.0,0.00022179,4]
[365383397,1749637834943,-460.0,0.0002218,4]
[365383398,1749637834952,-164.4,0.0002218,4]
[365383399,1749637834962,-460.0,0.0002218,2]
[365383400,1749637834971,-350.24060396,0.00022181,2]
[365383401,1749637834981,-470.31871863,0.000222,69]
[365383402,1749637834990,-470.31871863,0.000222,69]
[365383403,1749637834999,-1989.88223931,0.0002221,6]
[365383404,1749637835008,-153.0,0.00022247,2]
[365383405,1749637835017,-153.0,0.00022247,2]
[365383406,1749637835027,-153.0,0.00022247,2]
[365383407,1749637835036,-153.0,0.00022247,2]
[365383408,1749637835045,-153.0,0.00022247,2]
[365383409,1749637835055,-153.0,0.00022247,2]
[365383410,1749637835064,-153.0,0.00022247,2]
[365383411,1749637835074,-1989.88223931,0.00022314,7]
[365383412,1749637835083,-29.9041134,0.00022315,2]
[365383413,1749637835104,-470.0958866,0.00022315,2]
[365383414,1749637835114,-102.3044999,0.00022353,2]
[365383446,1749637838119,-510.68236887,0.00021356,4]
[365383448,1749637838129,-460.0,0.00021356,4]
[365383450,1749637838139,-460.0,0.0002163,4]
[365383452,1749637838149,-1868.95025736,0.00022069,2]
[365383454,1749637838159,-2329.1855001,0.00022353,2]
[365383456,1749637838169,-35888.30855142,0.00022354,2]
[365383458,1749637838178,-2723.76009196,0.00022354,2]
[365383460,1749637838188,-7664.44931421,0.00022354,2]
[365383975,1749638274384,200.78,0.0002498,60]
[365383977,1749638422996,163.094014,0.00013699,2]
[365383979,1749638475336,400.34642387,0.00024987,120]
[365383999,1749638983642,1730.0,0.00024658,120]
[365384038,1749639032328,-300.0,0.00019837,2]
[365384040,1749639032337,-172.125856,0.00019838,2]
[365384042,1749639032347,-396.842144,0.00019838,2]
[365384161,1749639038331,-13101.1672693,0.00019838,2]
[365384163,1749639038341,-514.29074826,0.00020087,2]
[365384165,1749639038351,-300.0,0.00020098,2]
[365384167,1749639038360,-305.52,0.00020126,2]
[365384169,1749639038370,-174.70796,0.00020167,2]
[365384171,1749639038379,-611.05,0.00021084,2]
[365384174,1749639038392,-151.79850785,0.000212,2]
[365384176,1749639038402,-420.0,0.00021245,4]
[365384178,1749639038411,-460.0,0.00021245,4]
[365384181,1749639038420,-330.16891728,0.00021245,4]
[365384183,1749639038429,-528.19750712,0.00021245,4]
[365384185,1749639038438,-460.0,0.00021245,4]
[365384187,1749639038447,-460.0,0.00021245,4]
[365384189,1749639038457,-460.0,0.00021245,4]
[365384191,1749639038466,-460.0,0.00021245,4]
[365384193,1749639038475,-460.0,0.00021245,4]
[365384195,1749639038484,-1775.31,0.00021245,4]
[365384197,1749639038494,-400.0,0.00021245,4]
[365384199,1749639038504,-168.15747046,0.00021245,4]
[365384201,1749639038513,-460.0,0.00021245,4]
[365384203,1749639038522,-1808.51,0.00021245,4]
[365384205,1749639038531,-2150.6,0.00021245,4]
[365384207,1749639038541,-460.0,0.00021245,4]
[365384209,1749639038550,-1458.85,0.00021245,4]
[365384211,1749639038560,-460.0,0.00021245,4]
[365384213,1749639038569,-460.0,0.00021245,4]
[365384215,1749639038578,-261.96362287,0.00021245,4]
[365384217,1749639038587,-400.0,0.00021245,4]
[365384219,1749639038596,-400.0,0.00021245,4]
[365384221,1749639038606,-400.0,0.00021245,4]
[365384223,1749639038615,-350.0,0.00021245,4]
[365384225,1749639038625,-526.42,0.00021245,4]
[365384227,1749639038634,-460.0,0.00021245,4]
[365384229,1749639038644,-372.87303034,0.00021245,4]
[365384231,1749639038653,-400.0,0.00021245,4]
[365384233,1749639038663,-1532.95,0.00021245,4]
[365384235,1749639038672,-460.0,0.00021245,4]
[365384237,1749639038682,-945.48,0.00021245,4]
[365384240,1749639038694,-400.0,0.00021245,4]
[365384241,1749639038703,-1691.84,0.00021245,4]
[365384243,1749639038713,-390.0,0.00021245,4]
[365384245,1749639038722,-400.0,0.00021245,4]
[365384247,1749639038732,-460.03900169,0.00021245,4]
[365384249,1749639038742,-683.13,0.00021245,4]
[365384251,1749639038751,-400.0,0.00021245,4]
[365384253,1749639038761,-460.0,0.00021245,4]
[365384255,1749639038770,-4416.0,0.00021246,2]
[365384257,1749639038780,-5888.0,0.00021254,2]
[365384259,1749639038789,-158.7816813,0.000213,2]
[365384262,1749639038799,-153.0,0.000213,2]
[365384264,1749639038809,-153.0,0.000213,2]
[365384266,1749639038818,-176.8752352,0.000213,2]
[365384268,1749639038827,-153.0,0.000213,2]
[365384270,1749639038836,-573.4653004,0.000213,2]
[365384272,1749639038845,-158.7816813,0.000213,2]
[365384274,1749639038854,-153.0,0.000213,2]
[365384276,1749639038863,-176.8752352,0.000213,2]
[365384278,1749639038872,-306.0,0.000213,2]
[365384280,1749639038881,-573.4653004,0.000213,2]
[365384282,1749639038891,-176.8752352,0.000213,2]
[365384284,1749639038900,-158.7816813,0.000213,2]
[365384286,1749639038910,-573.4653004,0.000213,2]
[365384288,1749639038918,-158.7816813,0.000213,2]
[365384289,1749639038928,-573.4653004,0.000213,2]
[365384292,1749639038937,-176.8752352,0.000213,2]
[365384293,1749639038946,-400.0,0.00021352,4]
[365384296,1749639038955,-460.0,0.00021352,4]
[365384310,1749639039087,-400.0,0.00021352,4]
[365384312,1749639039098,-460.0,0.00021352,4]
[365384314,1749639039107,-400.0,0.00021352,4]
[365384316,1749639039116,-400.0,0.00021352,4]
[365384318,1749639039126,-500.0,0.00021352,4]
[365384321,1749639039137,-460.0,0.00021352,4]
[365384323,1749639039146,-400.0,0.00021352,4]
[365384325,1749639039156,-400.0,0.00021352,4]
[365384327,1749639039166,-400.0,0.00021352,4]
[365384329,1749639039174,-400.0,0.00021352,4]
[365384331,1749639039184,-460.0,0.00021352,4]
[365384333,1749639039195,-460.0,0.00021352,4]
[365384335,1749639039204,-460.0,0.00021352,4]
[365384337,1749639039213,-460.0,0.00021352,4]
[365384339,1749639039223,-400.0,0.00021352,4]
[365384341,1749639039232,-460.0,0.00021352,4]
[365384343,1749639039241,-460.0,0.00021352,4]
[365384345,1749639039251,-400.0,0.00021352,4]
[365384347,1749639039260,-2524.15,0.00021352,4]
[365384349,1749639039269,-613.94,0.00021352,4]
[365384351,1749639039278,-496.72,0.00021352,4]
[365384353,1749639039287,-460.0,0.00021352,4]
[365384355,1749639039297,-787.66,0.00021352,4]
[365384357,1749639039305,-1011.9,0.00021352,4]
[365384359,1749639039314,-400.0,0.00021352,4]
[365384361,1749639039323,-460.0,0.00021352,4]
[365384363,1749639039332,-460.0,0.00021352,4]
[365384365,1749639039342,-460.0,0.00021352,4]
[365384367,1749639039351,-1126.38,0.00021352,4]
[365384369,1749639039360,-400.0,0.00021352,4]
[365384371,1749639039369,-460.0,0.00021352,4]
[365384373,1749639039378,-460.0,0.00021352,4]
[365384375,1749639039387,-460.0,0.00021352,4]
[365384377,1749639039397,-460.0,0.00021352,4]
[365384379,1749639039406,-460.0,0.00021352,4]
[365384381,1749639039416,-460.0,0.00021352,4]
[365384383,1749639039425,-1129.61,0.00021352,4]
[365384385,1749639039434,-460.0,0.00021352,4]
[365384387,1749639039445,-400.0,0.00021352,4]
[365384389,1749639039454,-2617.41,0.00021352,4]
[365384391,1749639039463,-583.62,0.00021352,4]
[365384393,1749639039473,-1019.65,0.00021352,4]
[365384395,1749639039482,-400.0,0.00021352,4]
[365384398,1749639039491,-460.0,0.00021352,4]
[365384399,1749639039500,-460.0,0.00021352,4]
[365384401,1749639039510,-1138.82,0.00021352,4]
[365384403,1749639039519,-388.26081988,0.00021352,4]
[365384404,1749639039529,-460.0,0.00021353,4]
[365384406,1749639039538,-460.0,0.00021353,4]
[365384408,1749639039547,-180.0,0.00021353,4]
[365384410,1749639039556,-400.0,0.00021353,4]
[365384412,1749639039565,-460.0,0.00021353,4]
[365384414,1749639039575,-400.0,0.00021353,4]
[365384416,1749639039583,-400.0,0.00021353,4]
[365384418,1749639039593,-400.0,0.00021353,4]
[365384420,1749639039602,-400.0,0.00021353,4]
[365384422,1749639039611,-460.0,0.00021353,4]
[365384424,1749639039620,-380.0,0.00021353,4]
[365384426,1749639039631,-460.0,0.00021353,4]
[365384428,1749639039641,-460.0,0.00021353,4]
[365384430,1749639039650,-400.0,0.00021353,4]
[365384432,1749639039659,-400.0,0.00021353,4]
[365384434,1749639039669,-400.0,0.00021353,4]
[365384436,1749639039678,-400.0,0.00021353,4]
[365384438,1749639039691,-400.0,0.00021353,4]
[365384440,1749639039700,-400.0,0.00021353,4]
[365384442,1749639039709,-400.0,0.00021353,4]
[365384444,1749639039718,-460.0,0.00021353,4]
[365384446,1749639039728,-400.0,0.00021353,4]
[365384448,1749639039738,-327.48791154,0.00021353,4]
[365384450,1749639039747,-460.0,0.00021353,4]
[365384452,1749639039758,-460.0,0.00021353,4]
[365384454,1749639039769,-460.0,0.00021353,4]
[365384456,1749639039778,-400.0,0.00021353,4]
[365384458,1749639039787,-400.0,0.00021353,4]
[365384460,1749639039797,-460.0,0.00021353,4]
[365384462,1749639039806,-350.0,0.00021353,4]
[365384464,1749639039815,-460.0,0.00021353,4]
[365384466,1749639039825,-413.50776994,0.00021353,4]
[365384468,1749639039834,-460.0,0.00021353,4]
[365384470,1749639039843,-460.0,0.00021353,4]
[365384472,1749639039853,-460.0,0.00021353,4]
[365384474,1749639039862,-420.0,0.00021353,4]
[365384476,1749639039871,-390.0,0.00021353,4]
[365384478,1749639039881,-229.02398371,0.00021353,4]
[365384481,1749639039900,-460.0,0.00021353,4]
[365384483,1749639039911,-460.0,0.00021353,4]
[365384485,1749639039921,-420.0,0.00021353,4]
[365384487,1749639039930,-420.0,0.00021353,4]
[365384490,1749639039941,-460.0,0.00021353,4]
[365384492,1749639039951,-500.0,0.00021353,4]
[365384495,1749639039961,-460.0,0.00021353,4]